bitfinex/quotes_BTCUSD_20260101
["timestamp","ask_amount","ask_price","bid_price","bid_amount"]
[1767276939366,0.01065651,88002.0,88001.0,0.0113635]
[1767276939565,0.01065651,88007.0,88001.0,0.0113635]
[1767276939771,0.03522159,88006.0,88001.0,0.0113635]
[1767276939972,0.03522159,88005.0,88001.0,0.0113635]
[1767276940310,0.03522159,88004.0,88001.0,0.0113635]
[1767276940506,0.01065651,88003.0,88001.0,0.0113635]
[1767276940648,0.01065651,88002.0,88000.0,0.01136363]
[1767276940854,0.01065651,88001.0,88000.0,0.01136363]
[1767276941152,0.14788772,88008.0,88001.0,0.0113635]
[1767276941358,0.03522212,88007.0,88001.0,0.0113635]
[1767276941560,0.03522212,88006.0,88000.0,0.01136363]
[1767276941783,0.03522212,88005.0,88000.0,0.01136363]
[1767276941982,0.03522212,88004.0,88001.0,0.0113635]
[1767276942183,0.01065664,88003.0,88001.0,0.0113635]
[1767276942398,0.01065664,88002.0,88000.0,0.01136363]
[1767276942597,0.14788772,88008.0,88002.0,0.01136337]
[1767276942831,0.03522208,88007.0,88001.0,0.0113635]
[1767276942993,0.03522208,88006.0,88001.0,0.0113635]
[1767276943213,0.03522208,88005.0,88000.0,0.01136363]
[1767276943412,0.03522208,88004.0,88001.0,0.0113635]
[1767276943593,0.01065671,88003.0,88001.0,0.0113635]
[1767276943794,0.01065671,88002.0,88001.0,0.0113635]
[1767276944149,0.01065673,88007.0,88002.0,0.01136337]
[1767276944276,0.03522235,88006.0,88001.0,0.0113635]
[1767276944485,0.03522235,88005.0,88001.0,0.0113635]
[1767276944706,0.03522235,88004.0,88001.0,0.0113635]
[1767276944913,0.01065678,88003.0,88001.0,0.0113635]
[1767276945277,0.01065678,88002.0,88001.0,0.0113635]
[1767276945479,0.01065755,88007.0,88002.0,0.01136337]
[1767276945612,0.03522323,88006.0,88002.0,0.01136337]
[1767276945810,0.03522323,88005.0,88002.0,0.01136337]
[1767276946010,0.03522323,88004.0,88001.0,0.0113635]
[1767276946212,0.01065755,88003.0,88001.0,0.0113635]
[1767276946503,0.01065755,88002.0,88001.0,0.0113635]
[1767276946816,0.01065755,88007.0,88001.0,0.0113635]
[1767276947022,0.03522351,88006.0,88002.0,0.01136337]
[1767276947228,0.14788772,88008.0,88001.0,0.0113635]
[1767276947229,0.03522351,88005.0,88001.0,0.0113635]
[1767276947427,0.03522351,88004.0,88001.0,0.0113635]
[1767276947663,0.01065771,88003.0,88001.0,0.0113635]
[1767276947841,0.01065771,88002.0,88000.0,0.01136363]
[1767276948044,0.14788772,88008.0,88001.0,0.0113635]
[1767276948244,0.03522367,88007.0,88001.0,0.0113635]
[1767276948442,0.03522367,88006.0,88001.0,0.0113635]
[1767276948755,0.03522367,88005.0,88001.0,0.0113635]
[1767276949079,0.03522367,88004.0,88001.0,0.0113635]
[1767276949284,0.03522367,88003.0,88001.0,0.0113635]
[1767276949439,0.01065777,88002.0,88001.0,0.0113635]
[1767276949626,0.01065777,88007.0,88001.0,0.0113635]
[1767276949826,0.14788772,88008.0,88001.0,0.0113635]
[1767276949827,0.03522389,88006.0,88001.0,0.0113635]
[1767276950087,0.03522389,88005.0,88001.0,0.0113635]
[1767276950334,0.03522389,88004.0,88001.0,0.0113635]
[1767276950573,0.03522389,88003.0,87998.0,0.11594524]
[1767276950772,0.01065777,88002.0,88000.0,0.01136363]
[1767276950926,0.14788772,88008.0,88001.0,0.0113635]
[1767276951128,0.03522549,88007.0,88001.0,0.0113635]
[1767276951338,0.03522549,88006.0,88000.0,0.01136363]
[1767276951545,0.03522549,88005.0,88000.0,0.01136363]
[1767276951766,0.03522549,88004.0,88000.0,0.01136363]
[1767276951976,0.03522549,88003.0,88000.0,0.01136363]
[1767276952149,0.01065836,88002.0,88000.0,0.01136363]
[1767276952351,0.01065836,88001.0,88000.0,0.01136363]
[1767276952770,0.01065951,88007.0,88000.0,0.01136363]
[1767276952978,0.03522936,88006.0,88000.0,0.01136363]
[1767276953152,0.03522936,88005.0,88000.0,0.01136363]
[1767276953357,0.03522936,88004.0,88001.0,0.0113635]
[1767276953576,0.03522936,88003.0,88001.0,0.0113635]
[1767276953814,0.03523113,88002.0,88001.0,0.0113635]
[1767276957829,0.03523113,88002.0,88000.0,0.05834183]
[1767276958064,0.14788772,88008.0,88002.0,0.01136337]
[1767276958269,0.03525291,88007.0,88001.0,0.0113635]
[1767276958470,0.03525291,88006.0,88002.0,0.01136337]
[1767276958642,0.03525291,88005.0,88002.0,0.01136337]
[1767276958842,0.03525291,88004.0,88002.0,0.01136337]
[1767276959044,0.03525291,88003.0,88002.0,0.01136337]
[1767276959444,0.03525291,88003.0,88001.0,0.0113635]
[1767276959648,0.03525291,88002.0,88001.0,0.0113635]
[1767276962734,0.000549,88001.0,88000.0,0.01136363]
[1767276963001,0.03580191,88001.0,88000.0,0.01136363]
[1767276963191,0.03525291,88001.0,88000.0,0.01136363]
[1767276971335,0.03525291,88001.0,88000.0,0.01081463]
[1767276971488,0.03525291,88001.0,88000.0,0.01136363]
[1767276971894,0.03525291,88001.0,87998.0,0.06818284]
[1767276972205,0.19718217,88008.0,87998.0,0.01136389]
[1767276972206,0.03525291,88000.0,87998.0,0.01136389]
[1767276972367,0.01066666,87999.0,87998.0,0.01136389]
[1767276972743,0.00055,87998.0,87995.0,0.01136428]
[1767276972955,0.01066905,87997.0,87995.0,0.01136428]
[1767276973127,0.00055,87998.0,87995.0,0.01136428]
[1767276973128,0.04929445,88006.0,87997.0,0.01136402]
[1767276973352,0.03525981,88005.0,87997.0,0.01136402]
[1767276973528,0.03525981,88004.0,87997.0,0.01136402]
[1767276973763,0.00055,87997.0,87995.0,0.01136428]
[1767276973968,0.01066906,87996.0,87995.0,0.01136428]
[1767276975054,0.01053156,87996.0,87995.0,0.01136428]
[1767276976922,0.01053156,87996.0,87994.0,0.05682173]
[1767276977079,0.04929445,88006.0,87996.0,0.01136415]
[1767276977287,0.04929445,88004.0,87997.0,0.01136402]
[1767276977618,0.02459054,88003.0,87996.0,0.01136415]
[1767276977827,0.07388499,88002.0,87995.0,0.01136428]
[1767276978000,0.02459054,88001.0,87996.0,0.01136415]
[1767276978963,0.02459054,88001.0,87997.0,0.01136402]
[1767276979169,0.02459054,88001.0,87996.0,0.01136415]
[1767276979342,0.02459054,88001.0,87997.0,0.01136402]
[1767276979666,0.04929445,88000.0,87996.0,0.01136415]
[1767276980017,0.14788772,88008.0,87998.0,0.01136389]
[1767276980238,0.02459055,88007.0,87998.0,0.01136389]
[1767276980473,0.02459055,88007.0,87996.0,0.01136415]
[1767276980717,0.02459055,88007.0,87997.0,0.01136402]
[1767276980965,0.02459055,88007.0,87998.0,0.01136389]
[1767276981188,0.02459055,88007.0,87997.0,0.01136402]
[1767276981401,0.02459055,88007.0,87996.0,0.01136415]
[1767276981608,0.04984445,87996.0,87986.0,0.0114]
[1767276981815,0.13648772,87994.0,87986.0,0.0114]
[1767276982015,0.13648772,87994.0,87984.0,0.0113657]
[1767276982016,0.02459055,87993.0,87984.0,0.0113657]
[1767276982223,0.02459055,87993.0,87983.0,0.01136583]
[1767276982461,0.03599055,87993.0,87984.0,0.0113657]
[1767276982667,0.0114,87993.0,87985.0,0.01136557]
[1767276982883,0.0114,87993.0,87983.0,0.01136583]
[1767276983152,0.0114,87992.0,87982.0,0.01136596]
[1767276983357,0.0114,87992.0,87983.0,0.01136583]
[1767276983855,0.0114,87992.0,87981.0,0.06830245]
[1767276984059,0.0114,87992.0,87983.0,0.01136583]
[1767276985341,0.06072793,87992.0,87983.0,0.01136583]
[1767276986895,0.01065647,87991.0,87983.0,0.01136583]
[1767276987224,0.06072793,87992.0,87983.0,0.01136583]
[1767276987374,0.01065558,87991.0,87983.0,0.06819468]
[1767276987576,0.06072793,87992.0,87983.0,0.01136583]
[1767276987818,0.01065557,87991.0,87983.0,0.01136583]
[1767276988077,0.06072793,87992.0,87983.0,0.01136583]
[1767276988288,0.01065558,87991.0,87984.0,0.0113657]
[1767276988485,0.06072793,87992.0,87982.0,0.01136596]
[1767276988719,0.01065483,87991.0,87983.0,0.01136583]
[1767276988932,0.09485853,87992.0,87985.0,0.01136557]
[1767276989126,0.01065484,87991.0,87985.0,0.01136557]
[1767276989305,0.09485853,87992.0,87984.0,0.0113657]
[1767276989505,0.01065421,87991.0,87982.0,0.01136596]
[1767276989700,0.06072793,87992.0,87984.0,0.0113657]
[1767276989941,0.02202018,87991.0,87984.0,0.0113657]
[1767276990238,0.01136596,87991.0,87982.0,0.01136596]
[1767276990418,0.01136596,87991.0,87984.0,0.0113657]
[1767276991057,0.01136596,87991.0,87983.0,0.01136583]
[1767276991258,0.01136596,87991.0,87984.0,0.0113657]
[1767276991462,0.01136596,87991.0,87985.0,0.01136557]
[1767276991878,0.01136596,87991.0,87984.0,0.0113657]
[1767276992064,0.01136596,87991.0,87985.0,0.01136557]
[1767276992778,0.01136596,87991.0,87981.0,0.0001061]
[1767276992950,0.01065288,87990.0,87981.0,0.0001061]
[1767276993148,0.01136596,87991.0,87981.0,0.0001061]
[1767276993365,0.01065296,87990.0,87981.0,0.01147219]
[1767276993553,0.03413095,87991.0,87981.0,0.01147219]
[1767276993751,0.01065248,87990.0,87981.0,0.01147219]
[1767276993952,0.03413095,87991.0,87982.0,0.01136596]
[1767276994153,0.01065249,87990.0,87982.0,0.01136596]
[1767276994332,0.04553095,87992.0,87983.0,0.01136583]
[1767276994539,0.01065213,87991.0,87982.0,0.01136596]
[1767276994769,0.01065213,87990.0,87983.0,0.01136583]
[1767276994948,0.04553095,87992.0,87983.0,0.01136583]
[1767276995167,0.01065213,87991.0,87983.0,0.01136583]
[1767276995373,0.0114,87992.0,87983.0,0.01136583]
[1767276995540,0.02212406,87991.0,87983.0,0.01136583]
[1767276995758,0.01147219,87991.0,87983.0,0.01136583]
[1767276996276,0.01147219,87991.0,87984.0,0.0113657]
[1767276998239,0.01147219,87991.0,87983.0,0.01136583]
[1767276998976,0.01147219,87991.0,87982.0,0.01136596]
[1767277001390,0.01065227,87990.0,87982.0,0.01136596]
[1767277001578,0.01147219,87991.0,87982.0,0.01136596]
[1767277001788,0.01065228,87990.0,87983.0,0.01136583]
[1767277002034,0.01147219,87991.0,87983.0,0.01136583]
[1767277002251,0.01065228,87990.0,87983.0,0.01136583]
[1767277002469,0.01147219,87991.0,87982.0,0.01136596]
[1767277002767,0.01147219,87991.0,87984.0,0.0113657]
[1767277002983,0.01147219,87991.0,87983.0,0.01136583]
[1767277003197,0.01147219,87991.0,87984.0,0.0113657]
[1767277003437,0.01065323,87990.0,87984.0,0.0113657]
[1767277003658,0.01147219,87991.0,87984.0,0.0113657]
[1767277003881,0.01065323,87990.0,87984.0,0.0113657]
[1767277004122,0.01147219,87991.0,87984.0,0.0113657]
[1767277004123,0.01147219,87991.0,87990.0,0.000549]
[1767277004336,0.02212544,87991.0,87986.0,0.01136544]
[1767277004552,0.02212544,87991.0,87988.0,0.01136518]
[1767277004553,0.01147219,87991.0,87988.0,0.01136518]
[1767277016469,0.01066683,87990.0,87987.0,0.01136531]
[1767277016677,0.01147219,87991.0,87988.0,0.01136518]
[1767277016861,0.01066684,87990.0,87988.0,0.01136518]
[1767277017019,0.01147219,87991.0,87988.0,0.01136518]
[1767277017421,0.01066683,87990.0,87987.0,0.01136531]
[1767277017618,0.01147219,87991.0,87987.0,0.01136531]
[1767277017823,0.01066675,87990.0,87987.0,0.01136531]
[1767277018173,0.01147219,87991.0,87987.0,0.01136531]
[1767277018378,0.01066675,87990.0,87987.0,0.01136531]
[1767277018552,0.01147219,87991.0,87988.0,0.01136518]
[1767277018718,0.01066669,87990.0,87988.0,0.01136518]
[1767277018919,0.01147219,87991.0,87988.0,0.01136518]
[1767277019168,0.01066669,87990.0,87988.0,0.01136518]
[1767277019368,0.01147219,87991.0,87988.0,0.01136518]
[1767277019518,0.01066664,87990.0,87987.0,0.01136531]
[1767277019755,0.01147219,87991.0,87987.0,0.01136531]
[1767277019980,0.01066664,87990.0,87987.0,0.01136531]
[1767277020216,0.01147219,87991.0,87987.0,0.01136531]
[1767277020442,0.01066655,87990.0,87987.0,0.01136531]
[1767277020643,0.01147219,87991.0,87988.0,0.00621742]
[1767277021169,0.01066655,87990.0,87988.0,0.00621742]
[1767277021375,0.01147219,87991.0,87988.0,0.00621742]
[1767277021810,0.01147219,87991.0,87987.0,0.01136531]
[1767277021981,0.01066651,87990.0,87987.0,0.01136531]
[1767277022155,0.01147219,87991.0,87988.0,0.01136518]
[1767277022968,0.01147219,87991.0,87987.0,0.01136531]
[1767277023163,0.01066648,87990.0,87987.0,0.01136531]
[1767277023408,0.01147219,87991.0,87988.0,0.01136518]
[1767277023616,0.0106666,87990.0,87988.0,0.01136518]
[1767277023825,0.01147219,87991.0,87988.0,0.01136518]
[1767277024126,0.0106666,87990.0,87988.0,0.01136518]
[1767277024268,0.01147219,87991.0,87988.0,0.01136518]
[1767277024473,0.01066674,87990.0,87987.0,0.01136531]
[1767277024734,0.000549,87988.0,87986.0,0.01136544]
[1767277025136,0.0114,87992.0,87987.0,0.01136531]
[1767277025342,0.01066695,87991.0,87987.0,0.01136531]
[1767277025499,0.01066695,87990.0,87987.0,0.01136531]
[1767277025695,0.0114,87992.0,87987.0,0.01136531]
[1767277025964,0.01066705,87991.0,87986.0,0.01136544]
[1767277026146,0.01066705,87990.0,87988.0,0.01136518]
[1767277026362,0.0114,87992.0,87986.0,0.01136544]
[1767277026572,0.01066724,87991.0,87986.0,0.01136544]
[1767277026778,0.01066724,87990.0,87987.0,0.01136531]
[1767277026993,0.0114,87992.0,87986.0,0.01136544]
[1767277027204,0.01066724,87991.0,87986.0,0.01136544]
[1767277027429,0.01066724,87990.0,87986.0,0.01136544]
[1767277027590,0.0114,87992.0,87987.0,0.01136531]
[1767277027805,0.01066747,87991.0,87987.0,0.01136531]
[1767277028015,0.01066747,87990.0,87987.0,0.01136531]
[1767277028177,0.0114,87992.0,87987.0,0.01136531]
[1767277028378,0.01066754,87991.0,87986.0,0.01136544]
[1767277028582,0.01066754,87990.0,87986.0,0.01136544]
[1767277028817,0.0114,87992.0,87986.0,0.01136544]
[1767277029050,0.01066773,87991.0,87985.0,0.01186055]
[1767277029337,0.01066773,87990.0,87985.0,0.01186055]
[1767277029543,0.0114,87992.0,87985.0,0.01186055]
[1767277029743,0.01066798,87991.0,87985.0,0.01186055]
[1767277029951,0.01066798,87990.0,87986.0,0.01136544]
[1767277030149,0.0114,87992.0,87985.0,0.01186055]
[1767277030354,0.01066804,87991.0,87985.0,0.01186055]
[1767277030561,0.01066804,87990.0,87985.0,0.00049498]
[1767277030758,0.01066804,87989.0,87985.0,0.01186055]
[1767277031015,0.0114,87992.0,87985.0,0.01186055]
[1767277031159,0.01066834,87991.0,87985.0,0.01186055]
[1767277031362,0.01066834,87990.0,87985.0,0.01186055]
[1767277031566,0.01066834,87989.0,87985.0,0.01186055]
[1767277031743,0.0114,87992.0,87985.0,0.01186055]
[1767277031949,0.01066876,87991.0,87985.0,0.01186055]
[1767277032242,0.01066876,87990.0,87985.0,0.01186055]
[1767277032426,0.01066876,87989.0,87985.0,0.01186055]
[1767277032643,0.0114,87992.0,87985.0,0.01186055]
[1767277032855,0.01066925,87991.0,87985.0,0.01186055]
[1767277033048,0.01066925,87990.0,87985.0,0.01186055]
[1767277033273,0.01066925,87989.0,87985.0,0.01186055]
[1767277033471,0.0114,87992.0,87985.0,0.01186055]
[1767277033672,0.00060402,87985.0,87983.0,0.01136583]
[1767277034325,0.02458326,87991.0,87985.0,0.01136557]
[1767277034552,0.01067066,87990.0,87985.0,0.01136557]
[1767277034752,0.01067066,87989.0,87985.0,0.01136557]
[1767277034970,0.0114,87992.0,87985.0,0.01136557]
[1767277035178,0.03525583,87991.0,87985.0,0.01136557]
[1767277035381,0.01067066,87990.0,87985.0,0.01136557]
[1767277035525,0.01067066,87989.0,87985.0,0.01136557]
[1767277035727,0.0114,87992.0,87985.0,0.01136557]
[1767277035923,0.03525575,87991.0,87985.0,0.01136557]
[1767277036132,0.01067064,87990.0,87986.0,0.01136544]
[1767277036362,0.01067064,87989.0,87985.0,0.01136557]
[1767277036538,0.0114,87992.0,87986.0,0.01136544]
[1767277036921,0.03525574,87991.0,87985.0,0.01136557]
[1767277037130,0.01067064,87990.0,87985.0,0.01136557]
[1767277037347,0.01067064,87989.0,87984.0,0.0113657]
[1767277037524,0.0114,87992.0,87984.0,0.0113657]
[1767277037681,0.03525561,87991.0,87984.0,0.0113657]
[1767277037879,0.01067061,87990.0,87984.0,0.0113657]
[1767277038082,0.01067061,87989.0,87984.0,0.0113657]
[1767277038279,0.0114,87992.0,87984.0,0.0113657]
[1767277038486,0.03525556,87991.0,87984.0,0.0113657]
[1767277038671,0.0106706,87990.0,87984.0,0.0113657]
[1767277038880,0.0106706,87989.0,87984.0,0.0113657]
[1767277039079,0.0114,87992.0,87984.0,0.0113657]
[1767277039284,0.00049497,87990.0,87983.0,0.01136583]
[1767277039484,0.01067057,87989.0,87983.0,0.01136583]
[1767277039724,0.01067057,87989.0,87984.0,0.0113657]
[1767277040537,0.01067057,87989.0,87985.0,0.01136557]
[1767277040886,0.01067057,87989.0,87984.0,0.0113657]
[1767277041252,0.01067057,87989.0,87983.0,0.01136583]
[1767277042086,0.01067057,87989.0,87984.0,0.0113657]
[1767277045142,0.01067057,87989.0,87982.0,0.01136596]
[1767277045352,0.01067057,87989.0,87983.0,0.01136583]
[1767277045875,0.01067057,87989.0,87984.0,0.0113657]
[1767277046861,0.01067057,87989.0,87985.0,0.01136557]
[1767277047856,0.01067057,87989.0,87984.0,0.0113657]
[1767277048347,0.01067057,87989.0,87986.0,0.01136544]
[1767277049377,0.01067057,87989.0,87985.0,0.06819279]
[1767277049573,0.01067057,87989.0,87985.0,0.01136557]
[1767277050352,1.725e-05,87990.0,87989.0,0.000495]
[1767277050566,1.725e-05,87990.0,87986.0,0.01136544]
[1767277051051,1.725e-05,87990.0,87987.0,0.06819154]
[1767277053586,0.00967943,87997.0,87989.0,0.0577879]
[1767277053768,0.00963609,87997.0,87989.0,0.0577879]
[1767277053970,0.00963609,87997.0,87993.0,0.05682267]
[1767277054160,0.00963609,87997.0,87994.0,0.01136441]
[1767277055676,0.0114,87998.0,87992.0,0.01132907]
[1767277056080,0.13648772,88009.0,88001.0,0.0568173]
[1767277056284,0.13648772,88009.0,88003.0,0.05681602]
[1767277056731,0.13648772,88009.0,88004.0,0.01136311]
[1767277057129,0.13648772,88009.0,88003.0,0.01136324]
[1767277057290,0.13648772,88009.0,88004.0,0.01136311]
[1767277057725,0.13648772,88009.0,88003.0,0.01136324]
[1767277057923,0.13648772,88009.0,88002.0,0.01136337]
[1767277058767,0.13648772,88009.0,88003.0,0.01136324]
[1767277059675,0.13648772,88009.0,88002.0,0.01136337]
[1767277059873,0.000549,88003.0,88000.0,0.00012714]
[1767277060115,0.13648772,88009.0,88000.0,0.00012714]
[1767277060861,0.04831,88008.0,88000.0,1.4e-07]
[1767277066919,0.00850528,87995.0,87994.0,0.01136441]
[1767277067059,0.00837828,87995.0,87994.0,0.01136441]
[1767277072222,0.05668829,88006.0,87994.0,0.06818596]
[1767277072756,0.05668829,88006.0,87995.0,0.01136428]
[1767277073465,0.05668829,88006.0,87994.0,0.01136441]
[1767277073670,0.05668829,88006.0,87995.0,0.01136428]
[1767277074102,0.05668829,88006.0,87996.0,0.01136415]
[1767277074725,0.05668829,88006.0,87997.0,0.01136402]
[1767277075420,0.05668829,88006.0,87996.0,0.01136415]
[1767277076675,0.05668829,88006.0,87995.0,0.01136428]
[1767277077093,0.05668829,88006.0,87996.0,0.01136415]
[1767277077271,0.05668829,88006.0,87995.0,0.01136428]
[1767277077903,0.05668829,88006.0,87994.0,0.01136441]
[1767277078665,0.05668829,88006.0,87995.0,0.01136428]
[1767277079634,0.05668829,88006.0,87996.0,0.01136415]
[1767277080130,0.05668829,88006.0,87995.0,0.01136428]
[1767277080316,0.05668829,88006.0,87997.0,0.01136402]
[1767277080528,0.05668829,88006.0,87996.0,0.01136415]
[1767277080752,0.05658829,88006.0,87995.0,0.01136428]
[1767277081552,0.05658829,88006.0,87995.0,0.0681852]
[1767277081863,0.05658829,88006.0,87995.0,0.01136428]
[1767277082381,0.05658829,88006.0,87996.0,0.01136415]
[1767277083518,0.05658829,88006.0,87996.0,0.06818484]
[1767277083743,0.05658829,88006.0,87998.0,0.01136389]
[1767277083946,0.05658829,88006.0,87997.0,0.01136402]
[1767277084293,0.01066441,88005.0,87997.0,0.01136402]
[1767277084606,0.05658829,88006.0,87999.0,0.01136376]
[1767277084808,0.01066454,88005.0,87998.0,0.01136389]
[1767277084938,0.05658829,88006.0,87998.0,0.01136389]
[1767277085307,0.05658829,88006.0,87997.0,0.01136402]
[1767277085308,0.03525191,88005.0,87997.0,0.01136402]
[1767277085511,0.01066454,88004.0,87997.0,0.01136402]
[1767277086284,0.01066454,88004.0,87994.0,0.06818616]
[1767277086285,0.01066454,88004.0,87996.0,0.01136415]
[1767277086480,0.01066454,88004.0,87997.0,0.01136402]
[1767277086808,0.01066454,88004.0,87996.0,0.01136415]
[1767277087010,0.01066454,88004.0,87994.0,0.01136441]
[1767277087212,0.00827829,88003.0,87994.0,0.01136441]
[1767277088065,0.00827829,88003.0,87995.0,0.05682141]
[1767277088420,0.00827829,88003.0,87997.0,0.01136402]
[1767277088619,0.00827829,88003.0,87997.0,0.06818413]
[1767277088775,0.00827829,88003.0,88000.0,0.01136363]
[1767277090510,0.00459862,88003.0,88001.0,0.04830944]
[1767277091563,0.00459862,88003.0,88000.0,0.06818165]
[1767277096719,0.00459862,88003.0,88002.0,0.05681689]
[1767277097336,0.01527057,88003.0,88002.0,0.05681689]
[1767277097953,0.01527057,88003.0,88000.0,0.06818165]
[1767277098131,0.00459862,88003.0,88000.0,0.06818165]
[1767277099044,0.00459862,88003.0,88001.0,0.04830944]
[1767277099787,0.00459862,88003.0,88000.0,0.06818165]
[1767277100371,0.00459862,88003.0,88001.0,0.056817]
[1767277101432,0.02458821,88009.0,88003.0,0.01136324]
[1767277101557,0.01067198,88008.0,88003.0,0.01136324]
[1767277101758,0.0115458,88010.0,88004.0,0.01136311]
[1767277101759,0.03526019,88007.0,88004.0,0.01136311]
[1767277101965,0.03526019,88006.0,88003.0,0.01136324]
[1767277102188,0.01067198,88005.0,88003.0,0.01136324]
[1767277102385,0.01067198,88004.0,88003.0,0.00676462]
[1767277104435,0.000549,88003.0,88001.0,0.0681805]
[1767277104780,0.02458831,88008.0,88003.0,0.01136324]
[1767277104981,0.01067196,88007.0,88003.0,0.01136324]
[1767277105181,0.03526027,88006.0,88003.0,0.01136324]
[1767277105390,0.01067196,88005.0,88003.0,0.01136324]
[1767277105593,0.04589087,88009.0,88003.0,0.01136324]
[1767277105797,0.04589087,88009.0,88006.0,0.01136286]
[1767277105998,0.04589087,88009.0,88005.0,0.01136299]
[1767277106257,0.02458744,88008.0,88005.0,0.01136299]
[1767277106456,0.0001458,88010.0,88006.0,0.01136286]
[1767277108714,0.0001458,88010.0,88005.0,0.01136299]
[1767277109312,0.0001458,88010.0,88004.0,0.01136311]
[1767277109516,0.0001458,88010.0,88003.0,0.01136324]
[1767277109665,0.0001458,88010.0,88004.0,0.01136311]
[1767277110315,0.0001458,88010.0,88005.0,0.01136299]
[1767277110718,0.0001458,88010.0,88006.0,0.01136286]
[1767277111164,0.0001458,88010.0,88007.0,0.01136273]
[1767277111369,0.0001458,88010.0,88006.0,0.01136286]
[1767277111619,0.04603667,88010.0,88006.0,0.01136286]
[1767277112014,0.04603667,88010.0,88004.0,0.01136311]
[1767277112015,0.000246,88017.0,88010.0,0.05721488]
[1767277112293,0.000246,88017.0,88013.0,0.01136195]
[1767277112494,0.000246,88017.0,88012.0,0.01136208]
[1767277112746,0.000246,88017.0,88011.0,0.01136221]
[1767277113257,0.00033025,88017.0,88011.0,0.01136221]
[1767277114044,0.00033025,88017.0,88010.0,0.01136234]
[1767277114379,0.00033025,88017.0,88011.0,0.01136221]
[1767277114741,0.00033025,88017.0,88008.0,0.0681751]
[1767277114958,0.00033025,88017.0,88010.0,0.01136234]
[1767277116485,0.0248942,88017.0,88010.0,0.01136234]
[1767277116691,0.02456395,88016.0,88011.0,0.01136221]
[1767277116903,0.00033025,88017.0,88011.0,0.01136221]
[1767277117074,0.00033025,88017.0,88008.0,0.0113626]
[1767277117455,0.02489226,88017.0,88009.0,0.01136247]
[1767277117655,0.01065992,88016.0,88004.0,0.05681527]
[1767277117861,0.000146,88006.0,88004.0,0.01136311]
[1767277118299,0.13648772,88014.0,88004.0,0.01136311]
[1767277118878,0.13648772,88014.0,88005.0,0.01136299]
[1767277119963,0.13648772,88014.0,88006.0,0.01136286]
[1767277120975,0.13648772,88014.0,88000.0,0.05970944]
[1767277120976,0.000146,88006.0,88000.0,0.05970944]
[1767277121176,0.000146,88006.0,88002.0,0.01136337]
[1767277121402,0.18237859,88014.0,88004.0,0.01136311]
[1767277121644,0.18237859,88014.0,88005.0,0.01136299]
[1767277122234,0.18237859,88014.0,88004.0,0.01136311]
[1767277122383,0.18237859,88014.0,88005.0,0.01136299]
[1767277122784,0.18237859,88014.0,88006.0,0.01136286]
[1767277123426,0.18237859,88014.0,88005.0,0.01136299]
[1767277123604,0.18237859,88014.0,88004.0,0.01136311]
[1767277123802,0.18237859,88014.0,88006.0,0.01136286]
[1767277125349,0.18237859,88014.0,88005.0,0.01136299]
[1767277125560,0.18237859,88014.0,88003.0,0.01136324]
[1767277126328,0.18237859,88014.0,88002.0,0.01136337]
[1767277126924,0.13648772,88014.0,88002.0,0.01136337]
[1767277127347,0.13648772,88014.0,88003.0,0.01136324]
[1767277127744,0.13648772,88014.0,88004.0,0.01136311]
[1767277127966,0.13648772,88014.0,88006.0,0.01136286]
[1767277128171,0.13648772,88014.0,88005.0,0.01136299]
[1767277128426,0.13648772,88014.0,88006.0,0.01136286]
[1767277128718,0.13648772,88014.0,88005.0,0.01136299]
[1767277128883,0.13648772,88014.0,88006.0,0.01136286]
[1767277129890,0.13648772,88014.0,88005.0,0.01136299]
[1767277130511,0.13648772,88014.0,88006.0,0.01136286]
[1767277131535,0.13648772,88014.0,88007.0,0.01136273]
[1767277131710,0.13648772,88014.0,88006.0,0.01136286]
[1767277131895,0.13648772,88014.0,88007.0,0.06817639]
[1767277132318,0.13648772,88014.0,88007.0,0.01136273]
[1767277132522,0.13648772,88014.0,88008.0,0.0113626]
[1767277133258,0.13648772,88014.0,88005.0,0.01136299]
[1767277133489,0.000146,88008.0,88005.0,0.01136299]
[1767277133690,0.13648772,88014.0,88006.0,0.01136286]
[1767277133839,0.13648772,88014.0,88005.0,0.01136299]
[1767277134023,0.13648772,88014.0,88006.0,0.01136286]
[1767277134626,0.13648772,88014.0,88005.0,0.01136299]
[1767277134831,0.13648772,88014.0,88006.0,0.01136286]
[1767277135033,0.13648772,88014.0,88005.0,0.01136299]
[1767277136197,0.01066288,88013.0,88005.0,0.01136299]
[1767277136332,0.13648772,88014.0,88005.0,0.01136299]
[1767277136548,0.01066342,88013.0,88005.0,0.01136299]
[1767277136722,0.13648772,88014.0,88002.0,0.01136337]
[1767277136923,0.01066342,88013.0,88003.0,0.01136324]
[1767277137164,0.13648772,88014.0,88003.0,0.01136324]
[1767277137366,0.01066349,88013.0,88003.0,0.01136324]
[1767277137578,0.13648772,88014.0,88004.0,0.01136311]
[1767277137777,0.01066426,88013.0,88004.0,0.01136311]
[1767277137939,0.13648772,88014.0,88004.0,0.01136311]
[1767277138118,0.01066419,88013.0,88005.0,0.01136299]
[1767277138322,0.13648772,88014.0,88005.0,0.01136299]
[1767277138527,0.01066511,88013.0,88006.0,0.01136286]
[1767277138776,0.13648772,88014.0,88006.0,0.01136286]
[1767277138977,0.01066511,88013.0,88006.0,0.01136286]
[1767277139180,0.13648772,88014.0,88006.0,0.01136286]
[1767277139508,0.01066511,88013.0,88006.0,0.01136286]
[1767277139797,0.01066511,88012.0,88006.0,0.01136286]
[1767277139947,0.13648772,88014.0,88005.0,0.01136299]
[1767277140145,0.01066648,88013.0,88005.0,0.01136299]
[1767277140349,0.01066648,88012.0,88006.0,0.01136286]
[1767277140558,0.13648772,88014.0,88006.0,0.01136286]
[1767277140753,0.01066761,88013.0,88006.0,0.01136286]
[1767277140960,0.01066761,88012.0,88006.0,0.01136286]
[1767277141164,0.18328998,88014.0,88006.0,0.01136286]
[1767277141366,0.000146,88006.0,88003.0,0.05681624]
[1767277141672,0.18328998,88014.0,88003.0,0.06817948]
[1767277141874,0.0352512,88013.0,88004.0,0.01136311]
[1767277142079,0.01066922,88012.0,88005.0,0.01136299]
[1767277142277,0.01066922,88011.0,88005.0,0.01136299]
[1767277142638,0.18328998,88014.0,88005.0,0.01136299]
[1767277142839,0.03524733,88013.0,88005.0,0.01136299]
[1767277142963,0.01066805,88012.0,88005.0,0.01136299]
[1767277143165,0.01066805,88011.0,88005.0,0.01136299]
[1767277143366,0.18328998,88014.0,88006.0,0.01136286]
[1767277143623,0.03524727,88013.0,88006.0,0.01136286]
[1767277143779,0.01066803,88012.0,88006.0,0.01136286]
[1767277143980,0.18328998,88014.0,88006.0,0.01136286]
[1767277144183,0.03524685,88013.0,88006.0,0.01136286]
[1767277144382,0.0106679,88012.0,88006.0,0.01136286]
[1767277144623,0.01066788,88011.0,88006.0,0.01136286]
[1767277144843,0.18328998,88014.0,88004.0,0.01136311]
[1767277145040,0.000146,88006.0,88004.0,0.01136311]
[1767277145243,0.18328998,88014.0,88005.0,0.01136299]
[1767277145443,0.03524676,88013.0,88005.0,0.01136299]
[1767277145673,0.01066788,88012.0,88006.0,0.01136286]
[1767277145851,0.04680226,88013.0,88005.0,0.01136299]